[Event "1st Serbian League 2022"]
[Site "Vrnjacka Banja"]
[Date "2022.09.20"]
[Round "1.25"]
[White "Ter-Sahakyan, Samvel"]
[Black "Ioannidis, Evgenios"]
[Result "0-1"]
[ECO "C11"]
[WhiteElo "2630"]
[BlackElo "2486"]
[Annotator "TA"]
[PlyCount "84"]
[EventDate "2022.09.20"]
[EventType "team-tourn"]
[EventCountry "SRB"]
[SourceTitle "playchess.com"]
[Source "ChessBase"]
[SourceQuality "1"]
[TimeControl "40/5400+30:1800+30"]

{[%evp 20,84,11,2,16,14,24,26,25,7,23,16,36,32,45,28,8,29,23,22,25,36,32,0,0,-7,0,0,2,-21,-22,-11,-10,-38,-33,-48,-56,-55,-56,-54,-55,-104,-89,-107,-76,-159,-160,-175,-159,-358,-347,-354,-346,-669,-483,-1307,-1162,-1108,-899,-29984,-29985,-29984,-29976,-29982,-29983,-29983,-29983]} 1. e4 {[%emt 0:00:07]} e6 {[%emt 0:00:15]} 2. d4 {[%emt 0:00:11]} d5 {[%emt 0:00:09]} 3. Nc3 {[%emt 0:00:37]} Nf6 {[%emt 0:00:24]} 4. e5 {[%emt 0:01:33]} Nfd7 {[%emt 0:00:08]} 5. f4 {[%emt 0:01:58]} c5 {[%emt 0:00:14]} 6. Nf3 {[%emt 0:00:14]} Nc6 {[%emt 0:00:25]} 7. Be3 {[%emt 0:00:28]} cxd4 {[%emt 0:04:55]} 8. Nxd4 {[%emt 0:00:05]} Qb6 {[%emt 0:00:05]} 9. Qd2 {[%emt 0:04:22]} Qxb2 {[%emt 0:00:19]} 10. Rb1 {[%emt 0:00:09]} Qa3 {[%emt 0:00:07]} 11. Bb5 {[%emt 0:00:42] Hoping for Rb3. CPLX 2.9} Nxd4 {[%emt 0:00:26] CPLX 3.0 14 (Nd7-b8) (=14). C11: French: Classical System: 4 e5 and 4 Bg5 dxe4.} 12. Bxd4 {[%emt 0:00:05][%cal Of4f5] next f5! is good for White. RECAPT} ({Reject} 12. Qxd4 a6 13. Bxd7+ Bxd7 14. Rxb7 Rc8 $17) 12... a6 {[%emt 0:00:12] EASY} (12... Bb4 {keeps more tension.} 13. Rb3 Qa5 14. O-O O-O) 13. Bxd7+ {[%emt 0:00:19] BESTDEEP} Bxd7 {[%emt 0:00:07] RECAPT. White has an edge.} 14. Rb3 {[%emt 0:00:04] EASY} Qe7 {[%emt 0:00:08] CPLX 2.8} 15. Rxb7 {[%emt 0:00:11] EASY} Qd8 {[%emt 0:00:18] CPLX 3.1 20 (Ra8-c8) (=7) 15...Qh4+ is setting a new trend.} 16. O-O {[%emt 0:10:26] CPLX 3.0} Qc8 {[%emt 0:00:16] CPLX 2.9 13 (Ra8-c8) (=8)} 17. Rb3 {[%emt 0:05:50] MISS-Rf1-b1 17 (Rf1-b1) (=2)} Bc5 {[%emt 0:00:21] CPLX 2.5 0 (Qc8-c6) (=7)} 18. f5 {[%emt 0:13:25] BESTDEEP} Bxd4+ {[%emt 0:07:14] CPLX 3.1 0 (Qc8-c7) (=6)} 19. Qxd4 {[%emt 0:00:52] RECAPT} Qc4 {[%emt 0:00:07] BESTDEEP} 20. Qxc4 {[%emt 0:30:52] CPLX 3.8} dxc4 {[%emt 0:00:10] [#] RECAPT} 21. Rb4 $146 {[%emt 0:00:23] CPLX 2.3 32 (Rb3-b6) (=4)} ({Predecessor:} 21. Rb7 exf5 22. Rfb1 Bc8 23. R7b4 O-O 24. Rxc4 Be6 25. Rc6 Rfc8 26. Rbb6 h6 27. a4 {½-½ (66) Bulmaga,I (2390)-Cosma,E (2281) Eforie Nord 2022}) 21... exf5 {[%emt 0:00:49] CPLX 2.2} 22. Nd5 {[%emt 0:00:04] Strongly threatening Nc7+. CPLX 2.1} Rc8 {[%emt 0:21:05] Prevents Nc7+. CPLX 2.2 7 (Ra8-d8) (=5)} 23. Rb6 {[%emt 0:10:01] CPLX 2.2 0 (Rf1-d1) (=4)} Bc6 {[%emt 0:11:19] CPLX 2.2 2 (c4-c3) (=4)} 24. Rd1 {[%emt 0:07:58][%cal Od5c7] CPLX 2.6 23 (Nd5-c3) (=5)} Bxd5 {[%emt 0:00:24] CPLX 2.4} 25. Rxd5 $11 {[%emt 0:00:03][%mdl 4096] Endgame KRR-KRR. RECAPT} Ke7 {[%emt 0:00:42] Inhibits e6. CPLX 2.0} 26. Rxa6 {[%emt 0:03:23] CPLX 2.2 28 (e5-e6) (=6)} Ra8 {[%emt 0:04:09] CPLX 2.0} 27. Rc6 {[%emt 0:02:00] CPLX 2.3 15 (Ra6-d6) (=7)} Rhc8 {[%emt 0:00:04] CPLX 2.1} 28. Rxc8 {[%emt 0:04:59] EASY} Rxc8 $15 {[%emt 0:03:39] KR-KR. RECAPT} 29. a4 {[%emt 0:00:27] CPLX 2.0} Ke6 {[%emt 0:00:05] CPLX 2.0} 30. Rd4 {[%emt 0:00:26] CPLX 2.0 49 (Rd5-b5) (=8)} (30. Rb5 $15) 30... Kxe5 $17 {[%emt 0:03:13] CPLX 2.0} 31. c3 {[%emt 0:00:03] [#] CPLX 2.0 18 (Rd4-d7) (=9)} f4 $1 {[%emt 0:01:31] CPLX 2.0} 32. Kf2 {[%emt 0:01:00] [#] CPLX 2.0 83 (Rd4-d7) (=12)} ({White should try} 32. Rd7) 32... g5 $1 {[%emt 0:00:07][%cal Bg7g5,Bg5g4][%mdl 32] CPLX 2.0} 33. Ke2 {[%emt 0:02:29] CPLX 2.0 15 (a4-a5) (=12)} g4 {[%emt 0:01:04] CPLX 2.0 16 (h7-h5) (=3)} 34. Kf2 $2 {[%emt 0:01:07] This move loses the game for White. CPLX 2.0 199 (a4-a5) (=20)} (34. a5 $17) 34... h5 $19 {[%emt 0:03:47][%cal Bh7h5,Bh5h4][%mdl 32] CPLX 2.0} 35. h3 {[%emt 0:00:31] CPLX 2.0} f5 {[%emt 0:01:43] White must now prevent ...Rb8. CPLX 2.3} 36. Ke2 $2 {[%emt 0:00:23] CPLX 2.3 323 (Rd4-d1) (=31)} (36. Rd1 Rb8 37. Re1+ Kd5 38. Re2) 36... h4 {[%emt 0:02:59] Threatens to win with ...Rb8. CPLX 2.2 186 (Rc8-b8) (=10)} 37. Kf2 {[%emt 0:00:38] CPLX 2.2 400 (Ke2-f1) (=45)} (37. Kf1 $142 Rb8 38. Rd1) 37... Rb8 {[%emt 0:02:38] CPLX 2.3=>BLUNDERREACT} 38. Rd2 {[%emt 0:00:28] BESTDEEP} Rb3 {[%emt 0:04:56] CPLX 2.1 209 (Rb8-b1) (=17)} 39. Ra2 {[%emt 0:00:35] RELBLUND 400 (Rd2-c2) (=55)} g3+ {[%emt 0:01:49] CPLX 2.1=>BLUNDERREACT. Black mates.} 40. Ke2 {[%emt 0:00:09] RELBLUND 0 (Kf2-f3) (=53)} Rxc3 {[%emt 0:00:13] CPLX 2.0 8 (Rb3-b1) (=16)} 41. a5 {[%emt 0:30:24] RELBLUND 6 (Ke2-d2) (=52)} f3+ {[%emt 0:30:22] EASY} 42. gxf3 {[%emt 0:00:08] EASY} Rc1 {[%emt 0:00:05] Weighted Error Value: White=0.61/Black=0.16 (very precise)} 0-1

[Event "1st Serbian League 2022"]
[Site "Vrnjacka Banja"]
[Date "2022.09.20"]
[Round "1.26"]
[White "Damljanovic, Branko"]
[Black "Stojanovic, Mihajlo"]
[Result "1/2-1/2"]
[ECO "C02"]
[WhiteElo "2436"]
[BlackElo "2494"]
[Annotator "TA"]
[PlyCount "124"]
[EventDate "2022.09.20"]
[EventType "team-tourn"]
[EventCountry "SRB"]
[SourceTitle "playchess.com"]
[Source "ChessBase"]
[SourceQuality "1"]
[TimeControl "40/5400+30:1800+30"]

{[%evp 23,124,-20,-21,-16,-16,-13,-16,-28,-9,-44,0,0,0,-27,0,-10,0,-15,16,22,16,0,0,0,0,0,2,12,0,0,0,0,0,0,0,0,0,0,8,8,25,14,45,37,31,36,41,0,0,0,0,0,0,0,0,0,0,0,0,0,0,0,0,0,0,0,0,0,0,0,0,0,6,7,7,7,8,0,0,0,0,0,15,0,0,0,0,0,0,0,0,0,0,0,0,0,8,8,8,0,11,0,8]} 1. e4 {[%emt 0:00:08]} e6 {[%emt 0:00:13]} 2. d4 {[%emt 0:00:06]} d5 {[%emt 0:00:04]} 3. e5 {[%emt 0:00:07]} c5 {[%emt 0:00:23]} 4. c3 {[%emt 0:00:05]} Qb6 {[%emt 0:00:10]} 5. Nf3 {[%emt 0:00:06]} Nc6 {[%emt 0:00:17]} 6. Be2 {[%emt 0:00:07]} cxd4 {[%emt 0:00:29]} 7. cxd4 {[%emt 0:00:08]} Nh6 {[%emt 0:00:10]} 8. Nc3 {[%emt 0:01:48]} Nf5 {[%emt 0:00:07]} 9. Na4 {[%emt 0:00:07]} Qa5+ {[%emt 0:00:10]} 10. Bd2 {[%emt 0:01:00]} Bb4 {[%emt 0:00:08]} 11. Bc3 {[%emt 0:00:09]} Bxc3+ {[%emt 0:01:31]} 12. Nxc3 {[%emt 0:00:04]} Qb6 {[%emt 0:00:06][%csl LRb2,LRd4][%cal Rf5d4] BESTDEEP} 13. Bb5 {[%emt 0:00:36] EASY. C02: French: Advance Variation.} Bd7 {[%emt 0:00:07][%cal Rf5d4] CPLX 2.6} 14. Bxc6 {[%emt 0:00:46] CPLX 2.5} Bxc6 {[%emt 0:00:23] RECAPT} 15. Qd2 {[%emt 0:00:41] CPLX 2.2 12 (b2-b3) (=4)} Bb5 {[%emt 0:01:04] [#] CPLX 2.2 19 (Qb6-a6) (=5)} 16. h4 $146 {[%emt 0:16:53] CPLX 2.6 35 (Nc3xb5) (=12)} ({Predecessor:} 16. O-O-O O-O 17. Kb1 a5 18. h4 Bc4 19. h5 Qd8 20. g4 Ne7 21. h6 g6 22. Qf4 {½-½ (35) Boguslawski,O (2445)-Poetsch,H (2466) Germany 2013}) 16... Rc8 {[%emt 0:19:26] CPLX 2.5 44 (h7-h5) (=13)} 17. h5 {[%emt 0:05:08] BESTDEEP} h6 {[%emt 0:00:48] CPLX 2.7 0 (Rc8-c4) (=11)} 18. Rd1 {[%emt 0:02:51] CPLX 2.7 27 (g2-g4) (=12)} Rc7 {[%emt 0:15:10] CPLX 2.6 27 (Bb5-a6) (=13)} 19. g4 {[%emt 0:10:16] CPLX 2.6} Ne7 {[%emt 0:00:06] EASY} 20. Nh4 {[%emt 0:00:17] BESTDEEP} Qa5 {[%emt 0:07:56] CPLX 2.5 31 (Bb5-a6) (=13)} 21. Rh3 {[%emt 0:06:35] CPLX 2.7 0 (f2-f4) (=8)} Ba4 {[%emt 0:04:06] CPLX 3.3 0 (Bb5-a6) (=12)} 22. Nxa4 {[%emt 0:24:27] CPLX 3.2 16 (Rd1-c1) (=9)} Qxa4 {[%emt 0:00:06] RECAPT} 23. Ra3 {[%emt 0:00:14] CPLX 2.6} Qb5 {[%emt 0:03:08] BESTDEEP} 24. Rxa7 {[%emt 0:01:45] CPLX 2.8 0 (Nh4-f3) (=8)} O-O {[%emt 0:00:10] CPLX 3.1} 25. Ra5 {[%emt 0:02:25] CPLX 3.2 0 (Qd2-a5) (=7)} Qb6 {[%emt 0:00:34] CPLX 3.6} 26. Ra3 {[%emt 0:05:07] CPLX 2.5} Rfc8 {[%emt 0:12:58] CPLX 2.5} 27. Rc3 {[%emt 0:11:34] CPLX 2.5 0 (Ra3-b3) (=6)} Rxc3 {[%emt 0:34:10] CPLX 2.5} 28. bxc3 {[%emt 0:00:38] RECAPT} Qa5 {[%emt 0:00:00] CPLX 2.2} 29. Rc1 {[%emt 0:00:15] BESTDEEP} Rc4 {[%emt 0:00:00] CPLX 2.2} 30. Nf3 {[%emt 0:04:33] CPLX 2.2 0 (Ke1-f1) (=5)} Nc6 {[%emt 0:00:00][%cal Be7c6,Bc6b4,Bb4c2][%mdl 32] CPLX 2.1 8 (b7-b5) (=7)} 31. Kf1 {[%emt 0:02:51] CPLX 2.2} b5 {[%emt 0:00:00] CPLX 2.2 17 (Qa5-a3) (=7)} 32. Kg2 {[%emt 0:00:28] CPLX 2.2 11 (g4-g5) (=5)} b4 {[%emt 0:00:00] CPLX 2.2 31 (Qa5-a3) (=8)} (32... Qa3 {feels hotter.} 33. g5 b4 34. gxh6 bxc3 35. Qe3 gxh6 36. Qxh6 Qf8) 33. cxb4 {[%emt 0:00:22] EASY} Qxb4 {[%emt 0:00:00] RECAPT} 34. Qxb4 {[%emt 0:01:33] RECAPT 0 (Rc1xc4) (=5)} Nxb4 $14 {[%emt 0:00:00][%mdl 4096] Endgame KRN-KRN. RECAPT} 35. Ra1 {[%emt 0:02:30] CPLX 2.0 41 (Rc1xc4) (=6)} Nc2 {[%emt 0:00:24][%csl LRa1,LRd4] CPLX 2.0. The position is equal.} 36. Rd1 {[%emt 0:00:14] CPLX 2.0 0 (Ra1-b1) (=6)} Ra4 {[%emt 0:00:19] CPLX 2.0} 37. Rd2 {[%emt 0:01:09] CPLX 2.0 0 (Kg2-f1) (=6)} Rxa2 {[%emt 0:00:07] EASY} 38. Kg3 {[%emt 0:00:14] CPLX 2.0} Nb4 {[%emt 0:00:10] BESTDEEP} 39. Rxa2 {[%emt 0:00:10] EASY} Nxa2 $11 {[%emt 0:00:05] KN-KN. RECAPT} 40. Nd2 {[%emt 0:00:35] CPLX 2.0 0 (Nf3-e1) (=5)} Nc3 {[%emt 0:01:44] CPLX 2.0} 41. Kf3 {[%emt 0:31:06] Against Ne2. CPLX 2.0 0 (Kg3-f4) (=5)} f6 {[%emt 0:33:08] CPLX 2.0 0 (g7-g6) (=6)} 42. Nb3 {[%emt 0:00:00] CPLX 2.0 0 (Kf3-e3) (=5)} Kf7 {[%emt 0:00:00]} 43. Kf4 {[%emt 0:00:00]} Nb5 {[%emt 0:00:00]} 44. Ke3 {[%emt 0:00:00]} Na3 {[%emt 0:00:00]} 45. f4 {[%emt 0:00:00]} Nc4+ {[%emt 0:00:00] CPLX 2.0} 46. Kf3 {[%emt 0:00:00] CPLX 2.0 0 (Ke3-e2) (=5)} Ke7 {[%emt 0:00:00] CPLX 2.0 0 (Nc4-a3) (=6)} 47. Ke2 {[%emt 0:00:00] BESTDEEP} Kf7 {[%emt 0:00:00] BESTDEEP} 48. Nc5 {[%emt 0:00:00] CPLX 2.0} Ke7 {[%emt 0:00:00] CPLX 2.0 0 (Nc4-a3) (=5)} 49. Nd3 {[%emt 0:00:00] CPLX 2.0 0 (Nc5-a4) (=4)} f5 {[%emt 0:01:27] CPLX 2.0 1 (Ke7-f7) (=5)} 50. gxf5 {[%emt 0:00:00] CPLX 2.0 8 (g4-g5) (=4)} exf5 {[%emt 0:00:02] RECAPT} 51. Nb4 {[%emt 0:00:00] BESTDEEP} Ke6 {[%emt 0:00:04] EASY} 52. Na6 {[%emt 0:00:00] [#] Black must now prevent Nc7+. CPLX 2.0 0 (Nb4-c6) (=4)} Kd7 {[%emt 0:00:20] Prevents Nc7. CPLX 2.0 15 (Nc4-b6) (=5)} 53. Kd3 {[%emt 0:00:00] CPLX 2.0 15 (Na6-c5) (=4)} Na3 {[%emt 0:00:42] BESTDEEP} 54. Nb4 {[%emt 0:01:17] CPLX 2.0 0 (Kd3-e3) (=4)} Ke6 {[%emt 0:00:05] EASY} 55. Nc2 {[%emt 0:00:04] CPLX 2.0 0 (Nb4-a2) (=4)} Nb5 {[%emt 0:00:31] BESTDEEP} 56. Ne3 {[%emt 0:00:04] CPLX 2.0 0 (Nc2-b4) (=4)} Na7 {[%emt 0:01:50] BESTDEEP} 57. Ng2 {[%emt 0:00:17]} Nb5 {[%emt 0:01:02]} 58. Nh4 {[%emt 0:00:07]} Na7 {[%emt 0:01:38]} 59. Kc2 {[%emt 0:02:32] BESTDEEP} Nc6 {[%emt 0:01:48] CPLX 2.0 8 (Na7-b5) (=5)} 60. Kc3 {[%emt 0:00:08] CPLX 2.0} Na5 $1 {[%emt 0:00:13] DEEPSTRONG} 61. Nf3 {[%emt 0:05:02] [#] aiming for Kb4. CPLX 2.0 8 (Kc3-b4) (=4)} Nc4 {[%emt 0:00:28] CPLX 2.0 11 (Na5-c6) (=5)} 62. Kd3 {[%emt 0:00:25] CPLX 2.0 11 (Kc3-b4) (=4)} Na3 {[%emt 0:00:30] Weighted Error Value: White=0.04 (flawless) /Black=0.05 (flawless)} 1/2-1/2

[Event "1st Serbian League 2022"]
[Site "Vrnjacka Banja"]
[Date "2022.09.20"]
[Round "1.27"]
[White "Pezelj, Novak"]
[Black "Tadic, Branko"]
[Result "1/2-1/2"]
[ECO "B95"]
[WhiteElo "2496"]
[BlackElo "2455"]
[Annotator "TA"]
[PlyCount "35"]
[EventDate "2022.09.20"]
[EventType "team-tourn"]
[EventCountry "SRB"]
[SourceTitle "playchess.com"]
[Source "ChessBase"]
[SourceQuality "1"]
[TimeControl "40/5400+30:1800+30"]

{[%evp 13,35,-4,0,-2,27,39,27,37,64,71,53,55,73,66,84,47,48,42,47,11,22,21,22,31]} 1. e4 {[%emt 0:00:10]} c5 {[%emt 0:00:34]} 2. Nf3 {[%emt 0:00:28]} d6 {[%emt 0:00:29]} 3. d4 {[%emt 0:02:01]} cxd4 {[%emt 0:01:28]} 4. Nxd4 {[%emt 0:00:11]} Nf6 {[%emt 0:00:05]} 5. Nc3 {[%emt 0:00:06]} a6 {[%emt 0:01:08]} 6. Bg5 {[%emt 0:04:52][%cal Bc1g5,Bg5h4,Bh4g3][%mdl 32]} e6 {[%emt 0:04:34]} 7. Qd3 {[%emt 0:11:12]} h6 {[%emt 0:13:40] CPLX 2.5 4 (b7-b5) (=4)} 8. Bh4 {[%emt 0:04:19] CPLX 2.7 2 (Bg5-d2) (=2). B95: Sicilian Najdorf: 6 Bg5 e6, unusual White 7th moves.} Nc6 {[%emt 0:13:11] CPLX 2.5 29 (b7-b5) (=17)} 9. O-O-O {[%emt 0:05:31] BESTDEEP} Ne5 {[%emt 0:12:10] CPLX 2.8 0 (Nc6xd4) (=11)} 10. Qe2 {[%emt 0:13:15] CPLX 2.9. White has an edge.} g5 {[%emt 0:00:40] CPLX 2.6 27 (Bf8-e7) (=15)} 11. Bg3 {[%emt 0:00:09] EASY} Qc7 {[%emt 0:01:20] CPLX 2.4} 12. h4 {[%emt 0:13:47] [#] Threatens to win with hxg5. CPLX 2.6 0 (a2-a3) (=0)} Rg8 {[%emt 0:00:46] CPLX 2.8 18 (g5-g4) (=13)} 13. hxg5 {[%emt 0:01:17] CPLX 2.8} hxg5 {[%emt 0:00:06] RECAPT} 14. Nf3 {[%emt 0:02:42] CPLX 2.7 37 (Kc1-b1) (=6)} Bd7 {[%emt 0:14:24] CPLX 3.0 1 (Bf8-e7) (=10)} 15. Nxe5 {[%emt 0:13:07] CPLX 3.0 6 (a2-a3) (=6)} dxe5 {[%emt 0:00:06] RECAPT} 16. Qc4 {[%emt 0:00:06] [#] CPLX 2.5 36 (f2-f3) (=9)} Qxc4 $146 {[%emt 0:10:14] CPLX 3.0} ({Predecessor:} 16... Qa5 17. Qb3 O-O-O 18. Be2 Be7 19. f3 Bc6 20. Be1 Nd7 21. Nb1 g4 22. Bh4 Bxh4 23. Rxh4 {0-1 (32) Aleksic,N (2410)-Vukovic,Z (2430) Cetinje 1992}) 17. Bxc4 {[%emt 0:00:06] RECAPT} Bc6 {[%emt 0:00:28] CPLX 2.1 1 (Ra8-c8) (=7)} 18. Bxe5 {[%emt 0:03:29] Weighted Error Value: White=0.09 (flawless) /Black=0.09 (flawless)} 1/2-1/2

[Event "1st Serbian League 2022"]
[Site "Vrnjacka Banja"]
[Date "2022.09.20"]
[Round "1.28"]
[White "Nikolovski, Nikola"]
[Black "Ratkovic, Milovan"]
[Result "0-1"]
[ECO "B21"]
[WhiteElo "2359"]
[BlackElo "2411"]
[Annotator "ChessBase"]
[PlyCount "78"]
[EventDate "2022.09.20"]
[EventType "team-tourn"]
[EventCountry "SRB"]
[SourceTitle "playchess.com"]
[Source "ChessBase"]
[SourceQuality "1"]
[TimeControl "40/5400+30:1800+30"]

1. e4 {[%emt 0:00:07]} c5 {[%emt 0:00:38]} 2. Nc3 {[%emt 0:00:45]} e6 {[%emt 0:00:37]} 3. f4 {[%emt 0:00:33]} d5 {[%emt 0:00:27]} 4. Nf3 {[%emt 0:00:18]} dxe4 {[%emt 0:00:56]} 5. Nxe4 {[%emt 0:00:11]} Nc6 {[%emt 0:00:30]} 6. Bb5 {[%emt 0:01:22]} Bd7 {[%emt 0:00:47]} 7. Qe2 {[%emt 0:01:39]} Nh6 {[%emt 0:00:42]} 8. b3 {[%emt 0:02:33]} Be7 {[%emt 0:03:16]} 9. Bb2 {[%emt 0:00:52]} Nf5 {[%emt 0:00:55]} 10. O-O {[%emt 0:09:42]} O-O {[%emt 0:02:50]} 11. Bxc6 {[%emt 0:14:00]} Bxc6 {[%emt 0:00:36]} 12. d3 {[%emt 0:03:20]} b5 {[%emt 0:08:04]} 13. Qf2 {[%emt 0:22:52]} Rc8 {[%emt 0:10:16]} 14. Ne5 {[%emt 0:03:17]} Bb7 {[%emt 0:02:48]} 15. Kh1 {[%emt 0:11:07]} Rc7 {[%emt 0:06:53]} 16. Rae1 {[%emt 0:05:52]} Bh4 {[%emt 0:04:13]} 17. g3 {[%emt 0:06:54]} Be7 {[%emt 0:00:52]} 18. h3 {[%emt 0:06:43]} c4 {[%emt 0:03:51]} 19. Kh2 {[%emt 0:03:13]} f6 {[%emt 0:01:02]} 20. Nf3 {[%emt 0:00:17]} cxd3 {[%emt 0:00:56]} 21. c3 {[%emt 0:00:15]} Qc8 {[%emt 0:13:34]} 22. g4 {[%emt 0:02:05]} Nd6 {[%emt 0:00:50]} 23. Ned2 {[%emt 0:00:50]} e5 {[%emt 0:06:24]} 24. f5 {[%emt 0:02:45]} Qa8 {[%emt 0:01:41]} 25. Rg1 {[%emt 0:00:31]} Nf7 {[%emt 0:01:13]} 26. Rgf1 {[%emt 0:00:50]} Bd6 {[%emt 0:03:41]} 27. Kg1 {[%emt 0:00:36]} Bc5 {[%emt 0:01:28]} 28. Re3 {[%emt 0:00:06]} a5 {[%emt 0:03:35]} 29. Kh2 {[%emt 0:00:46]} a4 {[%emt 0:02:10]} 30. Rg1 {[%emt 0:00:32]} axb3 {[%emt 0:01:21]} 31. h4 {[%emt 0:00:18]} Bxf3 {[%emt 0:00:34]} 32. Nxf3 {[%emt 0:00:17]} Qa7 {[%emt 0:06:38]} 33. Bc1 {[%emt 0:00:40]} bxa2 {[%emt 0:00:24]} 34. g5 {[%emt 0:00:07]} fxg5 {[%emt 0:00:31]} 35. hxg5 {[%emt 0:01:08]} a1=Q {[%emt 0:00:44]} 36. g6 {[%emt 0:00:34]} Nh6 {[%emt 0:02:00]} 37. gxh7+ {[%emt 0:00:18]} Kh8 {[%emt 0:00:47]} 38. f6 {[%emt 0:00:32]} Qxc1 {[%emt 0:02:39]} 39. Ng5 {[%emt 0:00:41]} Qxe3 {[%emt 0:01:15]} 0-1

[Event "1st Serbian League 2022"]
[Site "Vrnjacka Banja"]
[Date "2022.09.20"]
[Round "1.29"]
[White "Ratkovic, Miloje"]
[Black "Milenkovic, Mladen"]
[Result "1-0"]
[ECO "A70"]
[WhiteElo "2498"]
[BlackElo "2379"]
[Annotator "TA"]
[PlyCount "71"]
[EventDate "2022.09.20"]
[EventType "team-tourn"]
[EventCountry "SRB"]
[SourceTitle "playchess.com"]
[Source "ChessBase"]
[SourceQuality "1"]
[TimeControl "40/5400+30:1800+30"]

{[%evp 16,71,50,38,74,72,105,68,70,70,68,76,144,147,158,155,143,145,153,143,157,153,188,181,183,161,176,154,633,630,597,321,312,303,297,191,192,187,183,10,530,525,492,505,502,177,165,162,166,157,362,149,156,137,165,137,29997,29998]} 1. d4 {[%emt 0:00:26]} Nf6 {[%emt 0:00:30]} 2. Nf3 {[%emt 0:00:49]} e6 {[%emt 0:00:50]} 3. c4 {[%emt 0:00:15]} c5 {[%emt 0:00:25]} 4. d5 {[%emt 0:00:16]} exd5 {[%emt 0:00:10]} 5. cxd5 {[%emt 0:00:07]} d6 {[%emt 0:00:09]} 6. Nc3 {[%emt 0:00:28]} g6 {[%emt 0:00:18]} 7. Bf4 {[%emt 0:00:45]} a6 {[%emt 0:02:19]} 8. e4 {[%emt 0:01:50]} Bg7 {[%emt 0:03:48]} 9. Qa4+ {[%emt 0:00:45] BESTDEEP} Kf8 {[%emt 0:26:31] CPLX 2.5 36 (Nf6-d7) (=36). A70: Modern Benoni: 6 e4 g6 7 Nf3.} 10. Be2 {[%emt 0:04:47] White has more active pieces. CPLX 2.5 2 (h2-h3) (=1)} Nh5 {[%emt 0:10:34] CPLX 2.5 33 (Qd8-e7) (=35)} 11. Be3 {[%emt 0:04:38] CPLX 3.0 37 (Bf4-g5) (=13)} Nd7 {[%emt 0:12:03] CPLX 2.7. White is slightly better.} 12. O-O {[%emt 0:00:23] CPLX 2.7} b5 {[%emt 0:13:30] BESTDEEP} 13. Qc2 {[%emt 0:02:33] [#] BESTDEEP} b4 $146 {[%emt 0:09:21] CPLX 2.6 68 (Nh5-f6) (=27)} (13... Nhf6 $142) ({Predecessor:} 13... h6 14. h3 Qf6 15. Nh2 Nf4 16. Ng4 Nxe2+ 17. Qxe2 Qe7 18. f3 f5 19. Nf2 Nf6 20. exf5 gxf5 {½-½ (60) Alltukhov,Y (2063)-Beletsky,A (2342) Novosibirsk 2009}) 14. Na4 $16 {[%emt 0:01:21] BESTDEEP} Rb8 {[%emt 0:17:02] CPLX 2.5 11 (a6-a5) (=25)} 15. Rae1 {[%emt 0:13:36] CPLX 2.5 3 (Nf3-d2) (=6)} Kg8 {[%emt 0:00:00] CPLX 2.5 0 (Nh5-f6) (=21)} 16. Nd2 {[%emt 0:05:33] CPLX 2.4 0 (h2-h3) (=5)} Nhf6 {[%emt 0:00:00] BESTDEEP} 17. f4 {[%emt 0:03:27][%cal Bf2f4,Bf4e5][%mdl 32] CPLX 2.3 10 (Nd2-c4) (=6)} h5 {[%emt 0:00:00] CPLX 2.2} 18. h3 {[%emt 0:03:32] Prevents Ng4. CPLX 2.2 4 (Nd2-c4) (=6)} Nb6 {[%emt 0:00:00] CPLX 2.3 35 (Nf6-e8) (=18)} 19. Nxb6 {[%emt 0:02:14] CPLX 2.6} Rxb6 {[%emt 0:00:00] RECAPT} 20. Bc4 {[%emt 0:08:29] CPLX 2.2 22 (Be2-d3) (=7)} Rb8 {[%emt 0:00:54] CPLX 2.1 15 (h5-h4) (=17)} 21. e5 {[%emt 0:02:39] CPLX 2.1} dxe5 {[%emt 0:00:59] MISS-Bc8-f5 400 (Bc8-f5) (=46)} (21... Bf5 $16 22. Qb3 Nd7) 22. fxe5 $18 {[%emt 0:02:26] RECAPT} Nxd5 {[%emt 0:00:05] EASY} 23. Ne4 {[%emt 0:06:08] CPLX 4.0 276 (Rf1xf7) (=24)} (23. Bxc5 Be6 24. Bd6 (24. Bxa6 Qc7 $11) 24... Rc8 $18) 23... Be6 {[%emt 0:01:53] BESTDEEP} 24. Bg5 {[%emt 0:02:03] CPLX 3.4} (24. Bxa6 Nxe3 25. Rxe3 Qd4 26. Qxc5 Bxe5 27. Qxe5 Qxe5 $17) ({Much less strong is} 24. Bxc5 $6 Qc7 25. Bd6 (25. Bxa6 Bxe5 26. Qf2 h4 $14) 25... Qa7+ 26. Nc5 Rc8 $16) (24. Nxc5 $2 Nxe3 25. Nxe6 Qb6 $19) 24... Qc7 {[%emt 0:00:31] CPLX 3.6 0 (b4-b3) (=37)} 25. Bxd5 {[%emt 0:06:03] CPLX 3.4 106 (Ne4-d6) (=27)} Bxd5 {[%emt 0:00:01] RECAPT} 26. Nf6+ {[%emt 0:00:10] CPLX 3.3} Bxf6 {[%emt 0:00:04] EASY} 27. Bxf6 {[%emt 0:00:12] RELBLUND 173 (Rf1xf6) (=33)} (27. Rxf6 $18 {And now e6 would win.} Kh7 28. e6 (28. Rxa6 Rhe8 $11)) 27... Kh7 $2 {[%emt 0:01:12][%mdl 8192] RELBLUND 400 (Bd5-e6) (=53)} (27... Be6 $11) 28. Rf5 {[%emt 0:00:30][%cal Bf1f5,Bf5g5,Bg5g4][%mdl 32] Rxh5+ would kill now. BESTDEEP} Kg8 {[%emt 0:00:35] DEEPSTRONG} 29. Rg5 {[%emt 0:01:25] BESTDEEP} Rh6 {[%emt 0:00:35] CPLX 4.1} 30. Rd1 $2 {[%emt 0:05:05] MISS-e5-e6 325 (e5-e6) (=44)} (30. e6 Qc6 31. e7) 30... Be6 {[%emt 0:00:22] BESTDEEP} (30... Bxa2 $2 31. b3 $18) 31. Rd6 {[%emt 0:02:01] CPLX 3.7 3 (Rg5-g3) (=42)} c4 {[%emt 0:00:35] CPLX 3.9 4 (a6-a5) (=44)} 32. Kh2 {[%emt 0:02:45] BESTDEEP} h4 $2 {[%emt 0:00:36] [#] CPLX 4.0 205 (Kg8-h7) (=50)} (32... Kh7 $16 {was necessary.}) 33. Rxe6 $1 {[%emt 0:01:50][%mdl 512] CPLX 4.1 213 (Qc2-c1) (=47)} fxe6 $16 {[%emt 0:00:07] [#] RECAPT} 34. Rg4 $1 {[%emt 0:00:07] DEEPSTRONG} c3 {[%emt 0:00:41] CPLX 3.9} 35. Qc1 {[%emt 0:00:32][%mdl 1024] White has strong compensation. BESTDEEP} Kh7 {[%emt 0:00:22][%mdl 8192] [#] RELBLUND 400 (Qc7-h7) (=60)} (35... Qh7 $16) 36. Qxh6+ $3 {[%emt 0:00:10][%mdl 512] Weighted Error Value: White=0.53/Black=0.80} 1-0